[Event "Titled Tuesday Blitz May 03 Early 2022"]
[White "Puccini, Jack"]
[Black "Rabineau, Clement"]
[WhiteFideId "3213307"]
[BlackFideId "628891"]
[WhiteElo "2352"]
[BlackElo "2237"]
[Result "0-1"]
[Round "09"]
[TimeControl "180+1"]
[Date "2022.05.03"]
[WhiteClock "0:00:24"]
[BlackClock "0:00:21"]

1. e4 {[%clk 0:03:00]}  d6 {[%clk 0:03:00]} 2. d4 {[%clk 0:03:00]}  g6 {[%clk 0:03:00]} 3. Nf3 {[%clk 0:02:59]}  Bg7 {[%clk 0:03:00]} 4. Bc4 {[%clk 0:02:59]}  Nf6 {[%clk 0:02:56]} 5. Qe2 {[%clk 0:02:59]}  O-O {[%clk 0:02:56]} 6. e5 {[%clk 0:02:59]}  dxe5 {[%clk 0:02:57]} 7. dxe5 {[%clk 0:03:00]}  Nd5 {[%clk 0:02:57]} 8. h3 {[%clk 0:03:00]}  c6 {[%clk 0:02:40]} 9. O-O {[%clk 0:02:59]}  a5 {[%clk 0:02:34]} 10. Re1 {[%clk 0:02:56]}  b5 {[%clk 0:02:32]} 11. Bd3 {[%clk 0:02:56]}  Na6 {[%clk 0:02:17]} 12. c3 {[%clk 0:02:46]}  Nc5 {[%clk 0:02:17]} 13. Bc2 {[%clk 0:02:47]}  a4 {[%clk 0:02:12]} 14. Be3 {[%clk 0:02:44]}  Ne6 {[%clk 0:02:10]} 15. g3 {[%clk 0:02:34]}  Qc7 {[%clk 0:02:06]} 16. Bc1 {[%clk 0:02:14]}  Nb6 {[%clk 0:01:58]} 17. Nbd2 {[%clk 0:02:10]}  Nc5 {[%clk 0:01:54]} 18. Ne4 {[%clk 0:02:01]}  Nxe4 {[%clk 0:01:51]} 19. Bxe4 {[%clk 0:02:02]}  Bxh3 {[%clk 0:01:50]} 20. Bf4 {[%clk 0:01:51]}  Qc8 {[%clk 0:01:37]} 21. Ng5 {[%clk 0:01:44]}  Bf5 {[%clk 0:01:33]} 22. Kg2 {[%clk 0:01:27]}  h6 {[%clk 0:01:26]} 23. Nf3 {[%clk 0:01:25]}  Nd5 {[%clk 0:01:20]} 24. Bd2 {[%clk 0:01:16]}  Bh3+ {[%clk 0:01:10]} 25. Kh2 {[%clk 0:01:10]}  Bf5 {[%clk 0:01:11]} 26. Kg2 {[%clk 0:01:07]}  Rd8 {[%clk 0:00:48]} 27. Rh1 {[%clk 0:01:06]}  h5 {[%clk 0:00:48]} 28. Rae1 {[%clk 0:01:03]}  Nb6 {[%clk 0:00:36]} 29. Bc1 {[%clk 0:01:02]}  Nc4 {[%clk 0:00:35]} 30. Bf4 {[%clk 0:00:38]}  Bxe4 {[%clk 0:00:30]} 31. Qxe4 {[%clk 0:00:39]}  Nxb2 {[%clk 0:00:30]} 32. Ng5 {[%clk 0:00:33]}  Nd3 {[%clk 0:00:20]} 33. Re3 {[%clk 0:00:23]}  Nc5 {[%clk 0:00:18]} 34. Qf3 {[%clk 0:00:20]}  Ne6 {[%clk 0:00:18]} 35. Ree1 {[%clk 0:00:11]}  Nxg5 {[%clk 0:00:17]} 36. Bxg5 {[%clk 0:00:12]}  Qe6 {[%clk 0:00:18]} 37. Rh4 {[%clk 0:00:12]}  Rd5 {[%clk 0:00:17]} 38. g4 {[%clk 0:00:12]}  Rxe5 {[%clk 0:00:15]} 39. Rxe5 {[%clk 0:00:11]}  Qxe5 {[%clk 0:00:16]} 40. Bf4 {[%clk 0:00:11]}  Qf6 {[%clk 0:00:16]} 41. Qg3 {[%clk 0:00:09]}  e5 {[%clk 0:00:14]} 42. Be3 {[%clk 0:00:08]}  hxg4 {[%clk 0:00:10]} 43. Rxg4 {[%clk 0:00:07]}  Rd8 {[%clk 0:00:10]} 44. Bg5 {[%clk 0:00:08]}  Qd6 {[%clk 0:00:08]} 45. Bxd8 {[%clk 0:00:08]}  Qxd8 {[%clk 0:00:09]} 46. Qe3 {[%clk 0:00:08]}  Qd5+ {[%clk 0:00:09]} 47. Qe4 {[%clk 0:00:05]}  Qxa2 {[%clk 0:00:06]} 48. Qxc6 {[%clk 0:00:05]}  Bf8 {[%clk 0:00:03]} 49. Qxb5 {[%clk 0:00:04]}  Qb3 {[%clk 0:00:03]} 50. Qxa4 {[%clk 0:00:03]}  Qxc3 {[%clk 0:00:03]} 51. Qc4 {[%clk 0:00:03]}  Qd2 {[%clk 0:00:03]} 52. Qe4 {[%clk 0:00:02]}  Qc1 {[%clk 0:00:03]} 53. Rg3 {[%clk 0:00:02]}  Qc7 {[%clk 0:00:03]} 54. Qf3 {[%clk 0:00:02]}  Qe7 {[%clk 0:00:03]} 55. Qe2 {[%clk 0:00:03]}  Bg7 {[%clk 0:00:04]} 56. Rf3 {[%clk 0:00:03]}  Qe6 {[%clk 0:00:04]} 57. Re3 {[%clk 0:00:04]}  Qc6+ {[%clk 0:00:04]} 58. Qf3 {[%clk 0:00:04]}  Qc5 {[%clk 0:00:05]} 59. Re2 {[%clk 0:00:04]}  Qb6 {[%clk 0:00:05]} 60. Qe3 {[%clk 0:00:04]}  Qc6+ {[%clk 0:00:04]} 61. Qe4 {[%clk 0:00:05]}  Qf6 {[%clk 0:00:04]} 62. Rd2 {[%clk 0:00:05]}  Qg5+ {[%clk 0:00:05]} 63. Kf1 {[%clk 0:00:04]}  Qxd2 {[%clk 0:00:05]} 64. Qa8+ {[%clk 0:00:05]}  Bf8 {[%clk 0:00:04]} 65. Qe4 {[%clk 0:00:05]}  Qd1+ {[%clk 0:00:04]} 66. Kg2 {[%clk 0:00:05]}  Qd6 {[%clk 0:00:05]} 67. Qc4 {[%clk 0:00:05]}  Qe6 {[%clk 0:00:05]} 68. Qd3 {[%clk 0:00:05]}  Qc6+ {[%clk 0:00:05]} 69. Kf1 {[%clk 0:00:05]}  Qc7 {[%clk 0:00:05]} 70. Qd5 {[%clk 0:00:05]}  Qd6 {[%clk 0:00:05]} 71. Qa8 {[%clk 0:00:05]}  Kg7 {[%clk 0:00:05]} 72. Kg2 {[%clk 0:00:06]}  Be7 {[%clk 0:00:06]} 73. Kf1 {[%clk 0:00:06]}  Qe6 {[%clk 0:00:07]} 74. Qe4 {[%clk 0:00:06]}  Qf5 {[%clk 0:00:07]} 75. Qb7 {[%clk 0:00:07]}  Qh3+ {[%clk 0:00:07]} 76. Ke1 {[%clk 0:00:07]}  Qe6 {[%clk 0:00:08]} 77. Kf1 {[%clk 0:00:07]}  Bf6 {[%clk 0:00:09]} 78. Qa8 {[%clk 0:00:07]}  Qc4+ {[%clk 0:00:09]} 79. Kg1 {[%clk 0:00:07]}  Qf4 {[%clk 0:00:10]} 80. Kf1 {[%clk 0:00:07]}  Bh4 {[%clk 0:00:11]} 81. Qa2 {[%clk 0:00:07]}  Qxf2+ {[%clk 0:00:10]} 82. Qxf2 {[%clk 0:00:07]}  Bxf2 {[%clk 0:00:11]} 83. Kxf2 {[%clk 0:00:07]}  f5 {[%clk 0:00:11]} 84. Ke3 {[%clk 0:00:08]}  Kf6 {[%clk 0:00:12]} 85. Kf3 {[%clk 0:00:09]}  g5 {[%clk 0:00:13]} 86. Ke2 {[%clk 0:00:10]}  g4 {[%clk 0:00:13]} 87. Kf2 {[%clk 0:00:11]}  Kg5 {[%clk 0:00:14]} 88. Kg2 {[%clk 0:00:12]}  f4 {[%clk 0:00:14]} 89. Kf1 {[%clk 0:00:13]}  e4 {[%clk 0:00:15]} 90. Kf2 {[%clk 0:00:14]}  Kf5 {[%clk 0:00:16]} 91. Kg1 {[%clk 0:00:15]}  Ke5 {[%clk 0:00:17]} 92. Kf1 {[%clk 0:00:16]}  Kd4 {[%clk 0:00:18]} 93. Ke2 {[%clk 0:00:16]}  g3 {[%clk 0:00:18]} 94. Ke1 {[%clk 0:00:17]}  Ke3 {[%clk 0:00:18]} 95. Kf1 {[%clk 0:00:18]}  Kd2 {[%clk 0:00:19]} 96. Kg2 {[%clk 0:00:18]}  Ke2 {[%clk 0:00:18]} 97. Kg1 {[%clk 0:00:18]}  f3 {[%clk 0:00:18]} 98. Kh1 {[%clk 0:00:19]}  Ke3 {[%clk 0:00:18]} 99. Kg1 {[%clk 0:00:19]}  Kf4 {[%clk 0:00:18]} 100. Kf1 {[%clk 0:00:20]}  e3 {[%clk 0:00:19]} 101. Ke1 {[%clk 0:00:20]}  g2 {[%clk 0:00:20]} 102. Kd1 {[%clk 0:00:21]}  g1=Q+ {[%clk 0:00:20]} 103. Kc2 {[%clk 0:00:21]}  f2 {[%clk 0:00:20]} 104. Kd3 {[%clk 0:00:22]}  f1=Q+ {[%clk 0:00:21]} 105. Kc3 {[%clk 0:00:23]}  Qe1+ {[%clk 0:00:21]} 106. Kb3 {[%clk 0:00:24]}  Qc1 {[%clk 0:00:20]} 107. Kb4 {[%clk 0:00:23]}  Qg2 {[%clk 0:00:20]} 108. Kb3 {[%clk 0:00:23]}  Qgb2+ {[%clk 0:00:20]} 109. Ka4 {[%clk 0:00:24]}  Qca1# {[%clk 0:00:21]} 0-1


[Site "https://www.chess.com"]

[Event "Titled Tuesday Blitz May 03 Early 2022"]
[White "Quirke, Jeffrey"]
[Black "Winkels, Marcel"]
[WhiteFideId "2013029"]
[BlackFideId "1003887"]
[WhiteElo "2075"]
[BlackElo "1900"]
[Result "1-0"]
[Round "09"]
[TimeControl "180+1"]
[Date "2022.05.03"]
[WhiteClock "0:01:14"]
[BlackClock "0:00:16"]

1. d4 {[%clk 0:03:00]}  Nf6 {[%clk 0:02:58]} 2. c4 {[%clk 0:03:01]}  c5 {[%clk 0:02:58]} 3. d5 {[%clk 0:03:00]}  b5 {[%clk 0:02:57]} 4. Qc2 {[%clk 0:03:00]}  bxc4 {[%clk 0:02:54]} 5. e4 {[%clk 0:02:59]}  e6 {[%clk 0:02:55]} 6. Nc3 {[%clk 0:02:56]}  exd5 {[%clk 0:02:48]} 7. e5 {[%clk 0:02:56]}  Bb7 {[%clk 0:02:48]} 8. Bg5 {[%clk 0:02:54]}  h6 {[%clk 0:02:36]} 9. Bh4 {[%clk 0:02:44]}  d4 {[%clk 0:01:46]} 10. exf6 {[%clk 0:02:28]}  Qa5 {[%clk 0:01:20]} 11. Qe2+ {[%clk 0:02:11]}  Kd8 {[%clk 0:01:16]} 12. fxg7+ {[%clk 0:02:11]}  Kc7 {[%clk 0:01:05]} 13. gxh8=Q {[%clk 0:02:11]}  Nc6 {[%clk 0:00:54]} 14. Bg3+ {[%clk 0:02:04]}  Kb6 {[%clk 0:00:52]} 15. Qd2 {[%clk 0:01:55]}  Re8+ {[%clk 0:00:49]} 16. Be2 {[%clk 0:01:50]}  d3 {[%clk 0:00:48]} 17. Nd5+ {[%clk 0:01:42]}  Ka6 {[%clk 0:00:45]} 18. Qxa5+ {[%clk 0:01:41]}  Kxa5 {[%clk 0:00:44]} 19. Qc3+ {[%clk 0:01:30]}  Kb5 {[%clk 0:00:35]} 20. Nc7+ {[%clk 0:01:27]}  Kb6 {[%clk 0:00:34]} 21. Nxe8 {[%clk 0:01:28]}  Nb4 {[%clk 0:00:19]} 22. Bc7+ {[%clk 0:01:15]}  Ka6 {[%clk 0:00:16]} 23. Qxc4# {[%clk 0:01:14]} 1-0


[Site "https://www.chess.com"]

[Event "Titled Tuesday Blitz May 03 Early 2022"]
[White "Ramirez Vido, Robert Yorisan"]
[Black "Nozdrachev, Leonid"]
[WhiteFideId "3513823"]
[BlackFideId "24113433"]
[WhiteElo "2312"]
[BlackElo "2242"]
[Result "1-0"]
[Round "09"]
[TimeControl "180+1"]
[Date "2022.05.03"]
[WhiteClock "0:00:05"]
[BlackClock "0:00:10"]

1. f4 {[%clk 0:03:00]}  b5 {[%clk 0:02:50]} 2. Nf3 {[%clk 0:03:00]}  Bb7 {[%clk 0:02:50]} 3. e3 {[%clk 0:02:59]}  a6 {[%clk 0:02:48]} 4. b3 {[%clk 0:03:00]}  Nf6 {[%clk 0:02:47]} 5. Bb2 {[%clk 0:03:00]}  g6 {[%clk 0:02:47]} 6. Be2 {[%clk 0:03:01]}  Bg7 {[%clk 0:02:47]} 7. O-O {[%clk 0:03:02]}  O-O {[%clk 0:02:47]} 8. Qe1 {[%clk 0:03:02]}  c5 {[%clk 0:02:47]} 9. d3 {[%clk 0:03:02]}  Qb6 {[%clk 0:02:29]} 10. c4 {[%clk 0:02:59]}  bxc4 {[%clk 0:02:27]} 11. dxc4 {[%clk 0:02:57]}  Nc6 {[%clk 0:02:17]} 12. Nc3 {[%clk 0:02:54]}  Nb4 {[%clk 0:02:16]} 13. Rd1 {[%clk 0:02:37]}  Rad8 {[%clk 0:02:02]} 14. Ne5 {[%clk 0:02:07]}  d6 {[%clk 0:01:57]} 15. Nd3 {[%clk 0:02:05]}  Ne4 {[%clk 0:01:47]} 16. Na4 {[%clk 0:01:57]}  Nxd3 {[%clk 0:01:38]} 17. Bxd3 {[%clk 0:01:35]}  Qc6 {[%clk 0:01:38]} 18. Bxg7 {[%clk 0:01:30]}  Kxg7 {[%clk 0:01:36]} 19. Nc3 {[%clk 0:01:23]}  Ng5 {[%clk 0:01:29]} 20. Nd5 {[%clk 0:01:20]}  e6 {[%clk 0:01:18]} 21. Qc3+ {[%clk 0:01:16]}  f6 {[%clk 0:01:09]} 22. fxg5 {[%clk 0:01:09]}  exd5 {[%clk 0:01:10]} 23. gxf6+ {[%clk 0:00:50]}  Kh8 {[%clk 0:00:52]} 24. cxd5 {[%clk 0:00:41]}  Qxd5 {[%clk 0:00:53]} 25. Rf3 {[%clk 0:00:26]}  Qe5 {[%clk 0:00:48]} 26. Qxe5 {[%clk 0:00:18]}  dxe5 {[%clk 0:00:49]} 27. Rf2 {[%clk 0:00:18]}  Be4 {[%clk 0:00:46]} 28. Be2 {[%clk 0:00:18]}  Rxd1+ {[%clk 0:00:43]} 29. Bxd1 {[%clk 0:00:19]}  Kg8 {[%clk 0:00:40]} 30. Bf3 {[%clk 0:00:16]}  Bxf3 {[%clk 0:00:37]} 31. Rxf3 {[%clk 0:00:17]}  Kf7 {[%clk 0:00:35]} 32. Kf2 {[%clk 0:00:15]}  Ke6 {[%clk 0:00:29]} 33. g4 {[%clk 0:00:14]}  Rxf6 {[%clk 0:00:24]} 34. Rxf6+ {[%clk 0:00:13]}  Kxf6 {[%clk 0:00:25]} 35. Kf3 {[%clk 0:00:13]}  Kg5 {[%clk 0:00:22]} 36. Ke4 {[%clk 0:00:12]}  Kxg4 {[%clk 0:00:22]} 37. Kxe5 {[%clk 0:00:13]}  g5 {[%clk 0:00:18]} 38. e4 {[%clk 0:00:13]}  h5 {[%clk 0:00:17]} 39. Kf6 {[%clk 0:00:11]}  Kf4 {[%clk 0:00:16]} 40. e5 {[%clk 0:00:12]}  g4 {[%clk 0:00:15]} 41. e6 {[%clk 0:00:12]}  h4 {[%clk 0:00:16]} 42. e7 {[%clk 0:00:13]}  g3 {[%clk 0:00:17]} 43. hxg3+ {[%clk 0:00:13]}  hxg3 {[%clk 0:00:18]} 44. e8=Q {[%clk 0:00:14]}  g2 {[%clk 0:00:17]} 45. Qe1 {[%clk 0:00:12]}  Kf3 {[%clk 0:00:16]} 46. Qg1 {[%clk 0:00:12]}  Ke4 {[%clk 0:00:16]} 47. Qxc5 {[%clk 0:00:12]}  Kd3 {[%clk 0:00:17]} 48. Qg1 {[%clk 0:00:11]}  Kc3 {[%clk 0:00:16]} 49. Qxg2 {[%clk 0:00:12]}  Kb4 {[%clk 0:00:17]} 50. Ke5 {[%clk 0:00:12]}  a5 {[%clk 0:00:16]} 51. Kd4 {[%clk 0:00:10]}  Ka3 {[%clk 0:00:17]} 52. Kc4 {[%clk 0:00:08]}  a4 {[%clk 0:00:17]} 53. Qb7 {[%clk 0:00:06]}  Kb2 {[%clk 0:00:14]} 54. bxa4+ {[%clk 0:00:06]}  Ka3 {[%clk 0:00:14]} 55. a5 {[%clk 0:00:06]}  Ka4 {[%clk 0:00:10]} 56. Qb4# {[%clk 0:00:05]} 1-0


[Site "https://www.chess.com"]

[Event "Titled Tuesday Blitz May 03 Early 2022"]
[White "Saldano Dayer, Horacio"]
[Black "Vignesh, N R"]
[WhiteFideId "103411"]
[BlackFideId "25012215"]
[WhiteElo "2419"]
[BlackElo "2363"]
[Result "1/2-1/2"]
[Round "09"]
[TimeControl "180+1"]
[Date "2022.05.03"]
[WhiteClock "0:00:06"]
[BlackClock "0:00:05"]

1. d4 {[%clk 0:03:00]}  d5 {[%clk 0:02:50]} 2. Bf4 {[%clk 0:03:00]}  Nf6 {[%clk 0:02:48]} 3. Nc3 {[%clk 0:03:00]}  e6 {[%clk 0:02:47]} 4. Nb5 {[%clk 0:02:56]}  Na6 {[%clk 0:02:43]} 5. e3 {[%clk 0:02:56]}  c6 {[%clk 0:02:41]} 6. Nc3 {[%clk 0:02:53]}  Bd6 {[%clk 0:02:42]} 7. Bxd6 {[%clk 0:02:41]}  Qxd6 {[%clk 0:02:41]} 8. Nf3 {[%clk 0:02:41]}  O-O {[%clk 0:02:39]} 9. a3 {[%clk 0:02:30]}  c5 {[%clk 0:02:39]} 10. Ne5 {[%clk 0:02:25]}  Nc7 {[%clk 0:02:37]} 11. Bd3 {[%clk 0:02:23]}  Nd7 {[%clk 0:02:36]} 12. f4 {[%clk 0:02:11]}  f5 {[%clk 0:02:35]} 13. g4 {[%clk 0:02:04]}  cxd4 {[%clk 0:02:30]} 14. exd4 {[%clk 0:02:03]}  Nxe5 {[%clk 0:02:29]} 15. dxe5 {[%clk 0:01:59]}  Qb6 {[%clk 0:02:26]} 16. gxf5 {[%clk 0:01:59]}  Qe3+ {[%clk 0:02:20]} 17. Ne2 {[%clk 0:01:58]}  exf5 {[%clk 0:02:14]} 18. Qd2 {[%clk 0:01:58]}  Qb6 {[%clk 0:02:13]} 19. O-O-O {[%clk 0:01:53]}  Ne6 {[%clk 0:02:10]} 20. Rhg1 {[%clk 0:01:51]}  Bd7 {[%clk 0:02:09]} 21. Qb4 {[%clk 0:01:45]}  Qxb4 {[%clk 0:02:05]} 22. axb4 {[%clk 0:01:46]}  a5 {[%clk 0:02:06]} 23. b5 {[%clk 0:01:42]}  a4 {[%clk 0:02:01]} 24. Kd2 {[%clk 0:01:42]}  Ra5 {[%clk 0:01:52]} 25. Ra1 {[%clk 0:01:35]}  g6 {[%clk 0:01:26]} 26. b4 {[%clk 0:01:33]}  Raa8 {[%clk 0:01:25]} 27. h4 {[%clk 0:01:32]}  Kf7 {[%clk 0:01:24]} 28. h5 {[%clk 0:01:29]}  a3 {[%clk 0:01:17]} 29. hxg6+ {[%clk 0:01:27]}  hxg6 {[%clk 0:01:18]} 30. Ra2 {[%clk 0:01:23]}  Ra4 {[%clk 0:01:12]} 31. c3 {[%clk 0:01:22]}  Rh8 {[%clk 0:01:10]} 32. Rga1 {[%clk 0:01:04]}  Rh2 {[%clk 0:01:09]} 33. Ke3 {[%clk 0:01:04]}  Rh3+ {[%clk 0:00:53]} 34. Kd2 {[%clk 0:01:04]}  d4 {[%clk 0:00:46]} 35. Rxa3 {[%clk 0:00:48]}  dxc3+ {[%clk 0:00:45]} 36. Kxc3 {[%clk 0:00:44]}  Rxa3+ {[%clk 0:00:45]} 37. Rxa3 {[%clk 0:00:44]}  Bxb5 {[%clk 0:00:45]} 38. Kd2 {[%clk 0:00:44]}  Ke7 {[%clk 0:00:39]} 39. Rc3 {[%clk 0:00:42]}  Bxd3 {[%clk 0:00:29]} 40. Rxd3 {[%clk 0:00:42]}  Rh4 {[%clk 0:00:28]} 41. Ke3 {[%clk 0:00:29]}  g5 {[%clk 0:00:27]} 42. fxg5 {[%clk 0:00:26]}  Re4+ {[%clk 0:00:26]} 43. Kd2 {[%clk 0:00:26]}  Rxb4 {[%clk 0:00:26]} 44. g6 {[%clk 0:00:22]}  Rg4 {[%clk 0:00:20]} 45. Rb3 {[%clk 0:00:19]}  Nc5 {[%clk 0:00:19]} 46. Rb5 {[%clk 0:00:18]}  Ne4+ {[%clk 0:00:18]} 47. Ke3 {[%clk 0:00:18]}  Rxg6 {[%clk 0:00:16]} 48. Nd4 {[%clk 0:00:19]}  Rg3+ {[%clk 0:00:13]} 49. Kf4 {[%clk 0:00:19]}  Rg1 {[%clk 0:00:06]} 50. Rxb7+ {[%clk 0:00:19]}  Ke8 {[%clk 0:00:06]} 51. Nxf5 {[%clk 0:00:17]}  Nc5 {[%clk 0:00:05]} 52. Nd6+ {[%clk 0:00:17]}  Kd8 {[%clk 0:00:05]} 53. Rh7 {[%clk 0:00:16]}  Rf1+ {[%clk 0:00:04]} 54. Ke3 {[%clk 0:00:16]}  Ne6 {[%clk 0:00:05]} 55. Rh6 {[%clk 0:00:15]}  Kd7 {[%clk 0:00:05]} 56. Rh7+ {[%clk 0:00:15]}  Kc6 {[%clk 0:00:05]} 57. Rh6 {[%clk 0:00:14]}  Kd5 {[%clk 0:00:05]} 58. Nb5 {[%clk 0:00:13]}  Re1+ {[%clk 0:00:05]} 59. Kd2 {[%clk 0:00:13]}  Rxe5 {[%clk 0:00:05]} 60. Nc3+ {[%clk 0:00:11]}  Kc4 {[%clk 0:00:06]} 61. Rh4+ {[%clk 0:00:10]}  Nd4 {[%clk 0:00:06]} 62. Nd1 {[%clk 0:00:08]}  Ra5 {[%clk 0:00:05]} 63. Nb2+ {[%clk 0:00:07]}  Kb3 {[%clk 0:00:05]} 64. Nd3 {[%clk 0:00:07]}  Ra2+ {[%clk 0:00:05]} 65. Ke3 {[%clk 0:00:07]}  Kc3 {[%clk 0:00:05]} 66. Rxd4 {[%clk 0:00:06]}  Re2+ {[%clk 0:00:04]} 67. Kxe2 {[%clk 0:00:06]}  Kxd4 {[%clk 0:00:05]} 1/2-1/2


[Site "https://www.chess.com"]

[Event "Titled Tuesday Blitz May 03 Early 2022"]
[White "Samadov, Read"]
[Black "Deac, Bogdan-Daniel"]
[WhiteFideId "13417444"]
[BlackFideId "1226380"]
[WhiteElo "2084"]
[BlackElo "2648"]
[Result "0-1"]
[Round "09"]
[TimeControl "180+1"]
[Date "2022.05.03"]
[WhiteClock "0:00:01"]
[BlackClock "0:00:04"]

1. d4 {[%clk 0:03:00]}  Nf6 {[%clk 0:02:58]} 2. c4 {[%clk 0:03:01]}  e6 {[%clk 0:02:58]} 3. Nf3 {[%clk 0:03:01]}  d5 {[%clk 0:02:58]} 4. g3 {[%clk 0:03:02]}  Be7 {[%clk 0:02:58]} 5. Bg2 {[%clk 0:03:02]}  O-O {[%clk 0:02:59]} 6. O-O {[%clk 0:03:03]}  dxc4 {[%clk 0:02:59]} 7. Qc2 {[%clk 0:03:03]}  b5 {[%clk 0:02:57]} 8. a4 {[%clk 0:03:03]}  b4 {[%clk 0:02:57]} 9. Nfd2 {[%clk 0:03:03]}  Nd5 {[%clk 0:02:57]} 10. Nxc4 {[%clk 0:03:03]}  c5 {[%clk 0:02:57]} 11. dxc5 {[%clk 0:03:03]}  Ba6 {[%clk 0:02:57]} 12. Ne3 {[%clk 0:03:01]}  Nd7 {[%clk 0:02:57]} 13. Nxd5 {[%clk 0:03:00]}  exd5 {[%clk 0:02:58]} 14. c6 {[%clk 0:03:00]}  Rc8 {[%clk 0:02:58]} 15. Rd1 {[%clk 0:02:56]}  Ne5 {[%clk 0:02:57]} 16. Rxd5 {[%clk 0:02:42]}  Rxc6 {[%clk 0:02:53]} 17. Qd1 {[%clk 0:02:29]}  Qc8 {[%clk 0:02:44]} 18. Bf4 {[%clk 0:02:27]}  Ng6 {[%clk 0:02:43]} 19. Be3 {[%clk 0:02:18]}  Bf6 {[%clk 0:01:50]} 20. Nd2 {[%clk 0:02:12]}  Bxb2 {[%clk 0:01:48]} 21. Rb1 {[%clk 0:02:12]}  Bc3 {[%clk 0:01:18]} 22. Ne4 {[%clk 0:01:59]}  Qe6 {[%clk 0:00:25]} 23. Nc5 {[%clk 0:01:55]}  Qc8 {[%clk 0:00:15]} 24. h4 {[%clk 0:01:43]}  Bc4 {[%clk 0:00:15]} 25. Rg5 {[%clk 0:01:10]}  Rd8 {[%clk 0:00:14]} 26. Qc2 {[%clk 0:01:04]}  h6 {[%clk 0:00:14]} 27. Rf5 {[%clk 0:00:58]}  Rc7 {[%clk 0:00:10]} 28. h5 {[%clk 0:00:54]}  Ne7 {[%clk 0:00:09]} 29. Be4 {[%clk 0:00:35]}  Nxf5 {[%clk 0:00:08]} 30. Bxf5 {[%clk 0:00:35]}  Qa8 {[%clk 0:00:08]} 31. Rd1 {[%clk 0:00:21]}  Rxd1+ {[%clk 0:00:06]} 32. Qxd1 {[%clk 0:00:22]}  Re7 {[%clk 0:00:06]} 33. Qd6 {[%clk 0:00:17]}  Qe8 {[%clk 0:00:06]} 34. Bxh6 {[%clk 0:00:12]}  Rxe2 {[%clk 0:00:05]} 35. Bf4 {[%clk 0:00:08]}  Re1+ {[%clk 0:00:05]} 36. Kg2 {[%clk 0:00:05]}  Be5 {[%clk 0:00:05]} 37. Bxe5 {[%clk 0:00:04]}  Qxe5 {[%clk 0:00:06]} 38. Qd8+ {[%clk 0:00:04]}  Qe8 {[%clk 0:00:06]} 39. Qd6 {[%clk 0:00:03]}  b3 {[%clk 0:00:06]} 40. h6 {[%clk 0:00:03]}  b2 {[%clk 0:00:05]} 41. h7+ {[%clk 0:00:03]}  Kh8 {[%clk 0:00:04]} 42. Qd4 {[%clk 0:00:01]} 0-1


[Site "https://www.chess.com"]

[Event "Titled Tuesday Blitz May 03 Early 2022"]
[White "Sebag, Marie"]
[Black "Delorme, Alban"]
[WhiteFideId "617822"]
[BlackFideId "623636"]
[WhiteElo "2440"]
[BlackElo "2197"]
[Result "1-0"]
[Round "09"]
[TimeControl "180+1"]
[Date "2022.05.03"]
[WhiteClock "0:00:17"]
[BlackClock "0:00:12"]

1. e4 {[%clk 0:02:53]}  c5 {[%clk 0:03:00]} 2. Nc3 {[%clk 0:02:52]}  Nc6 {[%clk 0:02:57]} 3. Bb5 {[%clk 0:02:51]}  Nd4 {[%clk 0:02:54]} 4. Nf3 {[%clk 0:02:51]}  g6 {[%clk 0:02:55]} 5. O-O {[%clk 0:02:48]}  Bg7 {[%clk 0:02:55]} 6. Nxd4 {[%clk 0:02:47]}  cxd4 {[%clk 0:02:54]} 7. Ne2 {[%clk 0:02:47]}  Nf6 {[%clk 0:02:51]} 8. d3 {[%clk 0:02:47]}  O-O {[%clk 0:02:48]} 9. h3 {[%clk 0:02:29]}  d6 {[%clk 0:02:38]} 10. Ba4 {[%clk 0:02:14]}  e5 {[%clk 0:02:34]} 11. f4 {[%clk 0:02:10]}  Bd7 {[%clk 0:02:35]} 12. Bb3 {[%clk 0:02:07]}  Be6 {[%clk 0:02:35]} 13. f5 {[%clk 0:01:53]}  Bxb3 {[%clk 0:02:34]} 14. axb3 {[%clk 0:01:53]}  d5 {[%clk 0:02:35]} 15. Ng3 {[%clk 0:01:49]}  dxe4 {[%clk 0:02:27]} 16. Nxe4 {[%clk 0:01:47]}  Rc8 {[%clk 0:02:28]} 17. Bg5 {[%clk 0:01:41]}  Qb6 {[%clk 0:02:24]} 18. Bxf6 {[%clk 0:01:27]}  Bxf6 {[%clk 0:02:24]} 19. Qd2 {[%clk 0:01:17]}  a6 {[%clk 0:02:15]} 20. Rf2 {[%clk 0:01:16]}  gxf5 {[%clk 0:02:03]} 21. Rxf5 {[%clk 0:01:15]}  Bg7 {[%clk 0:02:03]} 22. Raf1 {[%clk 0:01:09]}  Rc6 {[%clk 0:01:42]} 23. Qf2 {[%clk 0:00:49]}  Qc7 {[%clk 0:01:34]} 24. Nf6+ {[%clk 0:00:48]}  Bxf6 {[%clk 0:00:42]} 25. Rxf6 {[%clk 0:00:49]}  Rxf6 {[%clk 0:00:43]} 26. Qxf6 {[%clk 0:00:48]}  Re8 {[%clk 0:00:44]} 27. Rf5 {[%clk 0:00:43]}  Re6 {[%clk 0:00:31]} 28. Rg5+ {[%clk 0:00:31]}  Kf8 {[%clk 0:00:31]} 29. Qh8+ {[%clk 0:00:26]}  Ke7 {[%clk 0:00:31]} 30. Rg8 {[%clk 0:00:26]}  Kd7 {[%clk 0:00:17]} 31. Qxh7 {[%clk 0:00:21]}  Rf6 {[%clk 0:00:18]} 32. Qh8 {[%clk 0:00:19]}  Qb6 {[%clk 0:00:15]} 33. Rb8 {[%clk 0:00:17]}  Re6 {[%clk 0:00:12]} 34. Qc8+ {[%clk 0:00:16]}  Kd6 {[%clk 0:00:11]} 35. Rxb7 {[%clk 0:00:16]}  Qc6 {[%clk 0:00:12]} 36. Qd8+ {[%clk 0:00:16]}  Kc5 {[%clk 0:00:12]} 37. Rc7 {[%clk 0:00:17]} 1-0


[Site "https://www.chess.com"]